{"text_format":"1","workbook":"xlsx","n_sheets":2,"sheets":["Affectations","Indisponibilités"],"not_rendered":{"charts":0,"images":0,"macros":0,"external_links":0,"defined_names":0,"comments":0,"pivot_tables":0},"unopened":[],"bounds":{"document_bytes":16777216,"sheet_cells":100000,"rows_first":2000,"rows_last":500,"rows_between":2000,"halvings":0,"cell_chars":16384,"cell_head_chars":4096},"cells_cut":0,"cells_raw":0,"read":"whole","date_system":"1900"}

{"sheet":"Affectations","index":0,"n_rows":56,"n_cols":7,"rows_kept":56,"cut":false,"hidden":false,"merged":[[1,1,1,6]]}
[]
[null,"Postes et affectations - Chef d'équipe"]
[]
[null,"Doeuf John","Poste.1","Poste.2","Poste.3","Poste.4","Poste.5"]
[null,"Sem.1"]
[null,"Sem.2"]
[null,"Sem.3"]
[null,"Sem.4"]
[null,"Sem.5"]
[null,"Sem.6"]
[null,"Sem.7"]
[null,"Sem.8"]
[null,"Sem.9"]
[null,"Sem.10"]
[null,"Sem.11"]
[null,"Sem.12"]
[null,"Sem.13"]
[null,"Sem.14"]
[null,"Sem.15"]
[null,"Sem.16"]
[null,"Sem.17"]
[null,"Sem.18"]
[null,"Sem.19"]
[null,"Sem.20"]
[null,"Sem.21"]
[null,"Sem.22"]
[null,"Sem.23"]
[null,"Sem.24"]
[null,"Sem.25"]
[null,"Sem.26"]
[null,"Sem.27"]
[null,"Sem.28"]
[null,"Sem.29"]
[null,"Sem.30"]
[null,"Sem.31"]
[null,"Sem.32"]
[null,"Sem.33"]
[null,"Sem.34"]
[null,"Sem.35"]
[null,"Sem.36"]
[null,"Sem.37"]
[null,"Sem.38"]
[null,"Sem.39"]
[null,"Sem.40"]
[null,"Sem.41"]
[null,"Sem.42"]
[null,"Sem.43"]
[null,"Sem.44"]
[null,"Sem.45"]
[null,"Sem.46"]
[null,"Sem.47"]
[null,"Sem.48"]
[null,"Sem.49"]
[null,"Sem.50"]
[null,"Sem.51"]
[null,"Sem.52"]

{"sheet":"Indisponibilités","index":1,"n_rows":61,"n_cols":19,"rows_kept":61,"cut":false,"hidden":false,"merged":[]}
[]
[null,null,1,"Honnête Camille",0.32238338643655406,null,null,null,"Sem.1",1,{"$f":"IF(J2+1<=5,J2+1,1)","v":2},{"$f":"IF(K2+1<=5,K2+1,1)","v":3},4,5,{"$f":"IFERROR(VLOOKUP(J2,$C$2:$D$6,2,FALSE),\"\")","v":"Honnête Camille"},{"$f":"IFERROR(VLOOKUP(K2,$C$2:$D$6,2,FALSE),\"\")","v":"Braltar Giles"},"Doeuf John","Aubin Marie","Galls Charline"]
[null,null,2,"Braltar Giles",0.39665900382752439,null,null,null,"Sem.2",2,{"$f":"IF(J3+1<=5,J3+1,1)","v":3},4,5,1,{"$f":"IFERROR(VLOOKUP(J3,$C$2:$D$6,2,FALSE),\"\")","v":"Braltar Giles"},{"$f":"IFERROR(VLOOKUP(K3,$C$2:$D$6,2,FALSE),\"\")","v":"Doeuf John"},{"$f":"IFERROR(VLOOKUP(L3,$C$2:$D$6,2,FALSE),\"\")","v":"Aubin Marie"},{"$f":"IFERROR(VLOOKUP(M3,$C$2:$D$6,2,FALSE),\"\")","v":"Galls Charline"},{"$f":"IFERROR(VLOOKUP(N3,$C$2:$D$6,2,FALSE),\"\")","v":"Honnête Camille"}]
[null,null,3,"Doeuf John",0.45207420891096373,null,null,null,"Sem.3",3,{"$f":"IF(J4+1<=5,J4+1,1)","v":4},5,1,2,"Doeuf John","Aubin Marie","Galls Charline","Honnête Camille","Braltar Giles"]
[null,null,4,"Aubin Marie",0.83285695765453405,null,null,null,"Sem.4",4,{"$f":"IF(J5+1<=5,J5+1,1)","v":5},1,2,3,"Aubin Marie","Galls Charline","Honnête Camille","Braltar Giles","Doeuf John"]
[null,null,5,"Galls Charline",0.93608715048362012,null,null,null,"Sem.5",5,{"$f":"IF(J6+1<=5,J6+1,1)","v":1},2,3,4,"Galls Charline","Honnête Camille","Braltar Giles","Doeuf John","Aubin Marie"]
[null,null,null,null,null,null,null,null,"Sem.6",{"$f":"IF(J6+1<=5,J6+1,$J$2)","v":1},{"$f":"IF(J7+1<=5,J7+1,1)","v":2},3,4,5,"Honnête Camille","Braltar Giles","Doeuf John","Aubin Marie","Galls Charline"]
[null,null,null,null,null,null,null,null,"Sem.7",{"$f":"IF(J7+1<=5,J7+1,$J$2)","v":2},{"$f":"IF(J8+1<=5,J8+1,1)","v":3},4,5,1,"Braltar Giles","Doeuf John","Aubin Marie","Galls Charline","Honnête Camille"]
[null,null,"Galls Charline","Doeuf John","Aubin Marie","Honnête Camille","Braltar Giles",null,"Sem.8",3,{"$f":"IF(J9+1<=5,J9+1,1)","v":4},5,1,2,"Doeuf John","Aubin Marie","Galls Charline","Honnête Camille","Braltar Giles"]
[null,"Sem.1",null,null,null,null,null,null,"Sem.9",4,{"$f":"IF(J10+1<=5,J10+1,1)","v":5},1,2,3,"Aubin Marie","Galls Charline","Honnête Camille","Braltar Giles","Doeuf John"]
[null,"Sem.2",null,null,"indisp.",null,null,null,"Sem.10",5,{"$f":"IF(J11+1<=5,J11+1,1)","v":1},2,3,4,"Galls Charline","Honnête Camille","Braltar Giles","Doeuf John","Aubin Marie"]
[null,"Sem.3","indisp.",null,null,null,null,null,"Sem.11",1,{"$f":"IF(J12+1<=5,J12+1,1)","v":2},3,4,5,"Honnête Camille","Braltar Giles","Doeuf John","Aubin Marie","Galls Charline"]
[null,"Sem.4",null,null,null,null,null,null,"Sem.12",2,{"$f":"IF(J13+1<=5,J13+1,1)","v":3},4,5,1,"Braltar Giles","Doeuf John","Aubin Marie","Galls Charline","Honnête Camille"]
[null,"Sem.5","indisp.",null,"indisp.",null,null,null,"Sem.13",3,{"$f":"IF(J14+1<=5,J14+1,1)","v":4},5,1,2,"Doeuf John","Aubin Marie","Galls Charline","Honnête Camille","Braltar Giles"]
[null,"Sem.6",null,null,null,null,null,null,"Sem.14",4,{"$f":"IF(J15+1<=5,J15+1,1)","v":5},1,2,3,"Aubin Marie","Galls Charline","Honnête Camille","Braltar Giles","Doeuf John"]
[null,"Sem.7",null,null,null,null,null,null,"Sem.15",5,{"$f":"IF(J16+1<=5,J16+1,1)","v":1},2,3,4,"Galls Charline","Honnête Camille","Braltar Giles","Doeuf John","Aubin Marie"]
[null,"Sem.8",null,null,null,null,"indisp.",null,"Sem.16",1,{"$f":"IF(J17+1<=5,J17+1,1)","v":2},3,4,5,"Honnête Camille","Braltar Giles","Doeuf John","Aubin Marie","Galls Charline"]
[null,"Sem.9",null,"indisp.",null,null,"indisp.",null,"Sem.17",2,{"$f":"IF(J18+1<=5,J18+1,1)","v":3},4,5,1,"Braltar Giles","Doeuf John","Aubin Marie","Galls Charline","Honnête Camille"]
[null,"Sem.10",null,null,null,null,null,null,"Sem.18",3,{"$f":"IF(J19+1<=5,J19+1,1)","v":4},5,1,2,"Doeuf John","Aubin Marie","Galls Charline","Honnête Camille","Braltar Giles"]
[null,"Sem.11",null,null,null,null,null,null,"Sem.19",4,{"$f":"IF(J20+1<=5,J20+1,1)","v":5},1,2,3,"Aubin Marie","Galls Charline","Honnête Camille","Braltar Giles","Doeuf John"]
[null,"Sem.12",null,null,"indisp.",null,null,null,"Sem.20",5,{"$f":"IF(J21+1<=5,J21+1,1)","v":1},2,3,4,"Galls Charline","Honnête Camille","Braltar Giles","Doeuf John","Aubin Marie"]
[null,"Sem.13",null,null,null,null,null,null,"Sem.21",1,{"$f":"IF(J22+1<=5,J22+1,1)","v":2},3,4,5,"Honnête Camille","Braltar Giles","Doeuf John","Aubin Marie","Galls Charline"]
[null,"Sem.14",null,null,null,"indisp.",null,null,"Sem.22",2,{"$f":"IF(J23+1<=5,J23+1,1)","v":3},4,5,1,"Braltar Giles","Doeuf John","Aubin Marie","Galls Charline","Honnête Camille"]
[null,"Sem.15",null,null,null,null,null,null,"Sem.23",3,{"$f":"IF(J24+1<=5,J24+1,1)","v":4},5,1,2,"Doeuf John","Aubin Marie","Galls Charline","Honnête Camille","Braltar Giles"]
[null,"Sem.16",null,null,null,null,null,null,"Sem.24",4,{"$f":"IF(J25+1<=5,J25+1,1)","v":5},1,2,3,"Aubin Marie","Galls Charline","Honnête Camille","Braltar Giles","Doeuf John"]
[null,"Sem.17",null,null,null,null,null,null,"Sem.25",5,{"$f":"IF(J26+1<=5,J26+1,1)","v":1},2,3,4,"Galls Charline","Honnête Camille","Braltar Giles","Doeuf John","Aubin Marie"]
[null,"Sem.18",null,null,null,null,null,null,"Sem.26",1,{"$f":"IF(J27+1<=5,J27+1,1)","v":2},3,4,5,"Honnête Camille","Braltar Giles","Doeuf John","Aubin Marie","Galls Charline"]
[null,"Sem.19",null,null,"indisp.",null,null,null,"Sem.27",2,{"$f":"IF(J28+1<=5,J28+1,1)","v":3},4,5,1,"Braltar Giles","Doeuf John","Aubin Marie","Galls Charline","Honnête Camille"]
[null,"Sem.20","indisp.",null,null,null,null,null,"Sem.28",3,{"$f":"IF(J29+1<=5,J29+1,1)","v":4},5,1,2,"Doeuf John","Aubin Marie","Galls Charline","Honnête Camille","Braltar Giles"]
[null,"Sem.21",null,null,null,null,null,null,"Sem.29",4,{"$f":"IF(J30+1<=5,J30+1,1)","v":5},1,2,3,"Aubin Marie","Galls Charline","Honnête Camille","Braltar Giles","Doeuf John"]
[null,"Sem.22","indisp.",null,"indisp.",null,null,null,"Sem.30",5,{"$f":"IF(J31+1<=5,J31+1,1)","v":1},2,3,4,"Galls Charline","Honnête Camille","Braltar Giles","Doeuf John","Aubin Marie"]
[null,"Sem.23",null,null,null,null,null,null,"Sem.31",1,{"$f":"IF(J32+1<=5,J32+1,1)","v":2},3,4,5,"Honnête Camille","Braltar Giles","Doeuf John","Aubin Marie","Galls Charline"]
[null,"Sem.24",null,null,null,null,null,null,"Sem.32",2,{"$f":"IF(J33+1<=5,J33+1,1)","v":3},4,5,1,"Braltar Giles","Doeuf John","Aubin Marie","Galls Charline","Honnête Camille"]
[null,"Sem.25",null,null,null,null,"indisp.",null,"Sem.33",3,{"$f":"IF(J34+1<=5,J34+1,1)","v":4},5,1,2,"Doeuf John","Aubin Marie","Galls Charline","Honnête Camille","Braltar Giles"]
[null,"Sem.26",null,"indisp.",null,null,"indisp.",null,"Sem.34",4,{"$f":"IF(J35+1<=5,J35+1,1)","v":5},1,2,3,"Aubin Marie","Galls Charline","Honnête Camille","Braltar Giles","Doeuf John"]
[null,"Sem.27",null,null,null,null,null,null,"Sem.35",5,{"$f":"IF(J36+1<=5,J36+1,1)","v":1},2,3,4,"Galls Charline","Honnête Camille","Braltar Giles","Doeuf John","Aubin Marie"]
[null,"Sem.28",null,null,null,null,null,null,"Sem.36",1,{"$f":"IF(J37+1<=5,J37+1,1)","v":2},3,4,5,"Honnête Camille","Braltar Giles","Doeuf John","Aubin Marie","Galls Charline"]
[null,"Sem.29",null,null,"indisp.",null,null,null,"Sem.37",2,{"$f":"IF(J38+1<=5,J38+1,1)","v":3},4,5,1,"Braltar Giles","Doeuf John","Aubin Marie","Galls Charline","Honnête Camille"]
[null,"Sem.30",null,null,null,null,null,null,"Sem.38",3,{"$f":"IF(J39+1<=5,J39+1,1)","v":4},5,1,2,"Doeuf John","Aubin Marie","Galls Charline","Honnête Camille","Braltar Giles"]
[null,"Sem.31",null,null,null,"indisp.",null,null,"Sem.39",4,{"$f":"IF(J40+1<=5,J40+1,1)","v":5},1,2,3,"Aubin Marie","Galls Charline","Honnête Camille","Braltar Giles","Doeuf John"]
[null,"Sem.32",null,null,null,null,null,null,"Sem.40",5,{"$f":"IF(J41+1<=5,J41+1,1)","v":1},2,3,4,"Galls Charline","Honnête Camille","Braltar Giles","Doeuf John","Aubin Marie"]
[null,"Sem.33",null,null,null,null,null,null,"Sem.41",1,{"$f":"IF(J42+1<=5,J42+1,1)","v":2},3,4,5,"Honnête Camille","Braltar Giles","Doeuf John","Aubin Marie","Galls Charline"]
[null,"Sem.34",null,null,null,null,null,null,"Sem.42",2,{"$f":"IF(J43+1<=5,J43+1,1)","v":3},4,5,1,"Braltar Giles","Doeuf John","Aubin Marie","Galls Charline","Honnête Camille"]
[null,"Sem.35",null,null,null,null,null,null,"Sem.43",3,{"$f":"IF(J44+1<=5,J44+1,1)","v":4},5,1,2,"Doeuf John","Aubin Marie","Galls Charline","Honnête Camille","Braltar Giles"]
[null,"Sem.36",null,null,null,null,null,null,"Sem.44",4,{"$f":"IF(J45+1<=5,J45+1,1)","v":5},1,2,3,"Aubin Marie","Galls Charline","Honnête Camille","Braltar Giles","Doeuf John"]
[null,"Sem.37",null,null,null,null,null,null,"Sem.45",5,{"$f":"IF(J46+1<=5,J46+1,1)","v":1},2,3,4,"Galls Charline","Honnête Camille","Braltar Giles","Doeuf John","Aubin Marie"]
[null,"Sem.38",null,null,null,null,null,null,"Sem.46",1,{"$f":"IF(J47+1<=5,J47+1,1)","v":2},3,4,5,"Honnête Camille","Braltar Giles","Doeuf John","Aubin Marie","Galls Charline"]
[null,"Sem.39",null,null,null,null,null,null,"Sem.47",2,{"$f":"IF(J48+1<=5,J48+1,1)","v":3},4,5,1,"Braltar Giles","Doeuf John","Aubin Marie","Galls Charline","Honnête Camille"]
[null,"Sem.40",null,null,null,null,null,null,"Sem.48",3,{"$f":"IF(J49+1<=5,J49+1,1)","v":4},5,1,2,"Doeuf John","Aubin Marie","Galls Charline","Honnête Camille","Braltar Giles"]
[null,"Sem.41",null,null,null,null,null,null,"Sem.49",4,{"$f":"IF(J50+1<=5,J50+1,1)","v":5},1,2,3,"Aubin Marie","Galls Charline","Honnête Camille","Braltar Giles","Doeuf John"]
[null,"Sem.42",null,null,"indisp.",null,null,null,"Sem.50",5,{"$f":"IF(J51+1<=5,J51+1,1)","v":1},2,3,4,"Galls Charline","Honnête Camille","Braltar Giles","Doeuf John","Aubin Marie"]
[null,"Sem.43","indisp.",null,null,null,null,null,"Sem.51",1,{"$f":"IF(J52+1<=5,J52+1,1)","v":2},3,4,5,"Honnête Camille","Braltar Giles","Doeuf John","Aubin Marie","Galls Charline"]
[null,"Sem.44",null,null,null,null,null,null,"Sem.52",2,{"$f":"IF(J53+1<=5,J53+1,1)","v":3},4,5,1,"Braltar Giles","Doeuf John","Aubin Marie","Galls Charline","Honnête Camille"]
[null,"Sem.45","indisp.",null,"indisp."]
[null,"Sem.46"]
[null,"Sem.47"]
[null,"Sem.48",null,null,null,null,"indisp."]
[null,"Sem.49",null,"indisp.",null,null,"indisp."]
[null,"Sem.50"]
[null,"Sem.51"]
[null,"Sem.52",null,null,"indisp."]